Workbook

Sheet Sheet1
A1: INSTRUCTIONS: Use this form when a single information collection document involves multiple reporting and recordkeeping requirements. The totals of the figures in cols. should be entered in item 13 of OMB-83-I: cols. (D) &/or (I) = 13a (respondent is only counted once); cols. F & I = 13b; cols. H & K = 13c. (F)Total/(D)Total = (E)Average (H)Total/(F)Total = (G)Average (K)Total/(I)Total = (J)Average NOTE: The columns will calculate automatically. If Col. E's response is something other than annually, i.e., 1/6 years, list as "1/6" & decimal will display. | I1: TITLE OF INFORMATION COLLECTION DOCUMENT | O1: OMB NO.
O2: 0560-NEW
I3: Pandemic Assistance Revenue Programs
O4: DATE PREPARED
O5: 2022-12-22
A10: IDENTIFICATION OF REPORTING OR RECORDKEEPING REQUIREMENT | H10: ANNUAL BURDEN
H12: REPORTS | N12: RECORDS | Q12: RESPONDENT COST
L14: TOTAL BURDEN HOURS | P14: TOTAL
G15: FORMS NO (S) | H15: NO. OF | I15: NO OF | J15: TOTAL ANNUAL | K15: HOURS | L15: (Col. F x G) | N15: NO. OF | O15: ANNUAL | P15: RECORD- | Q15: COST | R15: TOTAL
A16: SECTION OF | B16: DESCRIPTION | G16: (If "none" | H16: RESPONDENTS | I16: RESPONSES | J16: RESPONSES | K16: PER | L16: (H) | N16: RECORD- | O16: HOURS PER | P16: KEEPING HOURS | Q16: PER | R16: COST
A17: REGS. | G17: so state) | I17: PER | J17: (Col. D x E) | K17: RESPONSE | N17: KEEPERS | O17: RECORD- | P17: (Col. I x J) | Q17: HOUR | R17: (Col. H x L)
I18: RESPONDENT | L18: EXEMPT | M18: NON-EXEMPT | O18: KEEPER
A19: (A) | B19: (B) | G19: (C) | H19: (D) | I19: (E) | J19: (F) | K19: (G) | N19: (I) | O19: (J) | P19: (K) | Q19: (L) | R19: (M)
A20: 7 CFR part 9 | B20: Pandemic Assistance Revenue Program (PARP) Application | G20: FSA-1122 | H20: 313,901 | I20: 1 | J20: =SUM(H20*I20) -> 313,901 | K20: =45/60 -> 0.75 | M20: =SUM(J20*K20) -> 235,426 | Q20: $57.97 | R20: =Q20*M20 -> 13,647,631
A21: 7 CFR part 1400 | B21: Farm Operating Plan for an Individual (Parts A & B) | G21: CCC-902I | H21: =H20*0.125 -> 39,238 | I21: 1 | J21: 39,238 | K21: =5/60 -> 0.08 | M21: 3,270 | Q21: $57.97 | R21: 189,550
A22: 7 CFR part 1400 | B22: Farm Operating Plan for an Entity (Parts A & B) | G22: CCC-902E | H22: =H20*0.125 -> 39,238 | I22: 1 | J22: 39,238 | K22: =5/60 -> 0.08 | M22: 3,270 | Q22: $57.97 | R22: 189,550
A23: 7 CFR part 1400 | B23: Average Adjusted Gross Income (AGI) Certification and Consent to Disclosure of Tax Information | G23: CCC-941 | H23: =H20*0.1 -> 31,390 | I23: 1 | J23: 31,390 | K23: =15/60 -> 0.25 | M23: 7,848 | Q23: $57.97 | R23: 454,921
A24: 7 CFR part 9 | B24: Certification of 2020 Adjusted Gross Income (AGI) for Pandemic Assistance Revenue Program | G24: FSA-1123 | H24: =H20*0.05 -> 15,695 | I24: 1 | J24: 15,695 | K24: =15/60 -> 0.25 | M24: 3,924 | Q24: $57.97 | R24: 227,461
A25: 7 CFR part 1400 | B25: Member Information for Legal Entities, if applicable | G25: CCC-901 | H25: =H20*0.05 -> 15,695 | I25: 1 | J25: 15,695 | K25: =5/60 -> 0.08 | M25: 1,308 | Q25: $57.97 | R25: 75,820
A26: 7 CFR part 2 | B26: Highly Erodible Land Conservation (HELC) and Wetland Conservation Certification (exempt from PRA 16 U.S.C. 3846) | G26: AD-1026 | H26: =H20*0.005 -> 1,570 | I26: 1 | J26: 1,570 | K26: =5/60 -> 0.08 | M26: 131 | Q26: $57.97 | R26: 7,582
A27: 7 CFR Part 9 | B27: Continuation Sheet for Pandemic Assistance Revenue Program (PARP) Application | G27: FSA-1122A | H27: =H20*0.05 -> 15,695 | I27: 1 | J27: 15,695 | K27: =30/60 -> 0.50 | M27: 7,848 | Q27: $57.97 | R27: 454,921
A28: 7 CFR Part 9 | B28: Socially Disadvantaged, Limited Resource, Beginning and Veteran Farmer or Rancher Certification | G28: FSA-860 | H28: =H20*0.1 -> 31,390 | I28: 1 | J28: 31,390 | K28: 0.10 | M28: 3,139 | Q28: $57.97 | R28: =Q28*M28 -> 181,968
B29: Customer Data Worksheet | G29: AD-2047 | H29: =H20*0.05 -> 15,695 | I29: 1 | J29: 15,695 | K29: 0.05 | M29: 785 | Q29: $57.97 | R29: =Q29*M29 -> 45,492
B33: SUBTOTAL | J33: =SUM(J20:J29) -> 519,506 | L33: =SUM(L20:L26) -> 0 | M33: =SUM(M20:M29) -> 266,947 | P33: =SUM(P20:P32) -> 0.00 | R33: =SUM(R20:R32) -> 15,474,897
B34: TOTAL OF ALL PAGES | J34: =SUM(J33) -> 519,506 | L34: =SUM(L33) -> 0 | M34: =SUM(M33) -> 266,947 | P34: =SUM(P33) -> 0.00 | R34: =SUM(R33) -> 15,474,897
A35: TOTAL - COLUMNS "F" AND "I" = OMB 83-I, 13b; COLUMNS "H" AND "K" = OMB 83-I, 13c | J35: =SUM(J34+N34) -> 519,506 | M35: =SUM(M34+P34) -> 266,947
J36: =J35/H20 -> 1.655 | M36: =M35/J35 -> 0.5138469285 | Q36: Based on PARP
A43: Est Respondents | B43: =H20 -> 313,901
A44: Resp/Respondent | B44: =J36 -> 1.6550
A45: Est Total Resp | B45: =B43*B44 -> 519506
A46: Avg Time/Resp | B46: =M36 -> 0.51385
A47: Est Total Burden | B47: =B45*B46 -> 266947
G61: 235426 | H61: 53.71 | I61: =G61*H61 -> 12644730.46
